Cogmind - Beta 15 *** ADVENTURER MODE // 2025.06.25 @ 18:16:20 Player: VioletSharmander Result: Destroyed by E0-0PS(R) with Subdweller Beam Cannon Performance ------------- Evolutions (0) 0 Regions Visited (3) 600 Robots Destroyed (23) 115 Value Destroyed (762) 762 Prototype IDs (0) 0 Alien Tech Used (0) 0 Bonus (-257) -257 TOTAL SCORE: 1220 Bonus ------- Friendly Fire -257 Cogmind --------- Core Integrity 0/250 Matter 274/300 Energy 250/250 System Corruption 0% Temperature Cool (9) Movement Rolling (110) Location -10/Subcaves Parts ------- > --- POWER (1) -------- Ion Engine > --- PROPULSION (2) --- Subdweller Monowheel Subdweller Monowheel > --- UTILITY (2) ------ Small Storage Unit Seismic Detector > --- WEAPON (2) ------- Subdweller Laser Subdweller Beam Cannon > --- INVENTORY (8) ---- Ion Engine Myomer Leg Subdweller Optics Terrain Scanner Subdweller Laser Battle Rifle Subdweller Machine Gun Subdweller Machine Gun Peak State ------------ > --- POWER ------------ Subdweller Power Source > --- PROPULSION ------- Aluminum Leg Myomer Leg > --- UTILITY ---------- Small Storage Unit Seismic Detector > --- WEAPON ----------- Subdweller Beam Cannon Plasma Flamer > --- INVENTORY -------- Ion Engine Ion Engine Subdweller Power Source Subdweller Optics Terrain Scanner ECM Suite Subdweller Beam Cannon Assault Rifle [Rating: 20] Favorites ----------- Power Ion Engine Engine Ion Engine Propulsion Aluminum Leg Leg Aluminum Leg Wheel Subdweller Monowheel Utility Small Storage Unit Device Seismic Detector Storage Small Storage Unit Weapon EM Pulse Gun Energy Gun EM Pulse Gun Energy Cannon Subdweller Beam Cannon Ballistic Gun Assault Rifle Special Weapon Plasma Flamer Build | -11 -10 -10 -10 ------- Run | Yrd Mat Min Sub Slots Evolved . | . . . . Power . | . . . . Propulsion . | . . . . Utility . | . . . . Weapon . | . . . . Parts Attached 25 | 7 3 2 13 Power 5 | 1 . . 4 Engine 5 | 1 . . 4 Core . | . . . . Reactor . | . . . . Propulsion 5 | 2 . . 3 Treads . | . . . . Leg 3 | 2 . . 1 Wheel 2 | . . . 2 Hover . | . . . . Flight . | . . . . Utility 5 | 1 2 1 1 Device 3 | . 1 1 1 Storage 2 | 1 1 . . Processor . | . . . . Hackware . | . . . . Protection . | . . . . Artifact . | . . . . Weapon 10 | 3 1 1 5 Energy Gun 4 | 2 1 . 1 Energy Cannon 2 | . . . 2 Ballistic Gun 3 | 1 . . 2 Ballistic Cannon . | . . . . Launcher . | . . . . Special Weapon 1 | . . 1 . Impact Weapon . | . . . . Slashing Weapon . | . . . . Piercing Weapon . | . . . . Special Melee Weapon . | . . . . Unidentified Prototypes . | . . . . Parts Lost 4 | . . . 4 Power 1 | . . . 1 Propulsion 2 | . . . 2 Utility . | . . . . Weapon 1 | . . . 1 Highest Loss Streak 1 | . . . 1 To Critical Strikes . | . . . . Average Backups 7 | 3 7 7 7 Power 1 | . 1 2 1 Propulsion . | 2 2 . . Utility 2 | . 1 3 2 Weapon 2 | . 1 1 2 Tool/Special . | . . . . Unused Backups 12 | . 5 1 6 Power 1 | . . . 1 Propulsion 4 | . 4 . . Utility 5 | . 1 1 3 Weapon 2 | . . . 2 Tool/Special . | . . . . Average Slot Usage (%) 95 | . 98 100 94 Engine 13 | . 14 14 13 Leg 19 | . 28 28 15 Wheel 5 | . . . 7 Device 12 | . 2 14 14 Storage 15 | . 23 14 14 Energy Gun 10 | . 24 25 5 Energy Cannon 6 | . . . 8 Ballistic Gun 9 | . 3 . 12 Special Weapon 1 | . . 1 1 Peak Build Rating 20 | 6 8 12 20 Average Rating 12 | 4 7 8 14 On Entrance 6 | . 6 8 12 Naked Turns . | . . . . Heaviest Build 23 | 14 18 16 23 Greatest Support 40 | 20 20 20 40 Greatest Overweight (x) 1 | 1 . . . Average Overweight (x) . | . . . . Largest Inventory Capacity 8 | 8 8 8 8 Average Capacity 7 | 6 8 8 8 Most Carried 8 | 6 8 8 8 Average Carried 7 | 4 7 7 7 Final Capacity 8 | 8 8 8 8 Final Carried 8 | 6 8 8 8 Class Distribution -------------------- 80% | Mutant 19% | Scavenger-Mutant Dominant Class ---------------- Mutant | -10/Materials Mutant | -10/Mines Mutant | -10/Subcaves Resources | -11 -10 -10 -10 ----------- Run | Yrd Mat Min Sub Matter Collected 712 | 220 90 . 402 Remotely . | . . . . Salvage Created 865 | . 147 30 688 Parts 62 | . 7 3 52 Haulers Intercepted . | . . . . Recyclers Shooed . | . . . . Parts Field Recycled . | . . . . Retrieved Matter . | . . . . Parts Self-Destructed 12 | . . . 12 Prevented . | . . . . Kills | -11 -10 -10 -10 ------- Run | Yrd Mat Min Sub Combat Hostiles Destroyed 22 | . 3 2 17 Guns 9 | . 2 2 5 Cannons 12 | . . . 12 AOE 1 | . 1 . . Classes Destroyed 4 | . 1 1 2 Swarmer 4 | . . 2 2 Grunt 4 | . 3 . 1 Subdweller 14 | . . . 14 Guerrilla 1 | . . . 1 Best Kill Streak 3 | . 3 2 3 Combat Bots Only 3 | . 3 2 3 Max Kills in Single Turn 1 | . 1 1 1 Gunslinging . | . . . . Exploded 1 | . 1 . . Melee . | . . . . Uniques/NPCs Destroyed . | . . . . Combat | -11 -10 -10 -10 -------- Run | Yrd Mat Min Sub Hostile Shots Fired 91 | . 4 7 80 Missed 37 | . 2 6 29 Hits 54 | . 2 1 51 Projectile 54 | . 2 1 51 AOE 5 | . . . 5 Critical Strikes 2 | . . . 2 Damage Taken 1055 | . 52 8 995 Core 256 | . 12 . 244 Absorbed by Shields . | . . . . Ignored by Resistances 295 | . 14 2 279 Core Remaining (%) 100 | 100 . . . Volleys Fired 77 | . 5 4 68 Largest 2 | . 2 2 2 Hottest 180 | . 80 80 180 Shots Fired 152 | . 10 7 135 Gun 102 | . 10 7 85 Cannon 34 | . . . 34 Launcher . | . . . . Special 16 | . . . 16 Kinetic 68 | . . . 68 Thermal 57 | . . . 57 Explosive . | . . . . Electromagnetic 27 | . 10 7 10 Robot Hit Streak 18 | . 5 5 18 Robot Miss Streak 1 | . 1 1 1 Penetration Max . | . . . . Secondary Targets . | . . . . Shots Hit Robots 103 | . 9 5 89 Core Hits 41 | . 7 2 32 Critical Kills . | . . . . Critical Parts Destroyed . | . . . . Critical Strikes 2 | . . . 2 Burn 2 | . . . 2 Melee Attacks . | . . . . Impact . | . . . . Slashing . | . . . . Piercing . | . . . . Sneak Attacks . | . . . . Combat Hostiles . | . . . . Follow-up Attacks . | . . . . Damage Inflicted 1894 | . 161 108 1625 Guns 981 | . 116 62 803 Cannons 689 | . . . 689 Explosions 91 | . 45 46 . Melee . | . . . . Ramming . | . . . . Kinetic 594 | . . . 594 Thermal 1017 | . 45 46 926 Explosive . | . . . . Electromagnetic 283 | . 116 62 105 Impact . | . . . . Slashing . | . . . . Piercing . | . . . . Highest Corruption . | . . . . Average Corruption . | . . . . Corruption Purged . | . . . . Corruption Blocked . | . . . . Overload Shots . | . . . . Overflow Damage . | . . . . Projectiles . | . . . . Explosions . | . . . . Melee . | . . . . Knockbacks . | . . . . Impact . | . . . . Kinetic . | . . . . Secondary . | . . . . Self-Inflicted Damage 31 | . 31 . . Shots 1 | . 1 . . Rammed . | . . . . Targets Rammed . | . . . . Kicked . | . . . . Crushed . | . . . . Highest Temperature 218 | . 90 36 218 Average Temperature 65 | . 45 18 74 Received Heat Transfer 527 | . 18 . 509 Siege Activations . | . . . . Martial Activations . | . . . . Shielding Activations . | . . . . Robots Disrupted 1 | . . . 1 Combat Hostiles 1 | . . . 1 Robots Corrupted . | . . . . Combat Hostiles . | . . . . Parts Fried . | . . . . Impact Corruptions . | . . . . Robots Melted . | . . . . Combat Hostiles . | . . . . Parts Melted 1 | . . . 1 Heat Transferred 2220 | . . 50 2170 Parts Sabotaged . | . . . . Parts Stolen . | . . . . Parts Stripped . | . . . . Power Chain Reactions 2 | . 1 1 . Alert | -11 -10 -10 -10 ------- Run | Yrd Mat Min Sub Maximum Alert Level . | . . . . Low Security (%) 100 | 100 100 100 . Level 1 . | . . . . Level 2 . | . . . . Level 3 . | . . . . Level 4 . | . . . . Level 5 . | . . . . High Security . | . . . . Max Security . | . . . . Peak Influence 63 | . 63 33 . Initial 13 | . . 13 . Average 7 | . 14 5 . Influence Increases 201 | . 73 43 85 Destroy 0b10 Robot/C 160 | . 60 40 60 Destroy Leader 20 | . 10 . 10 Destroy Structure 6 | . 3 3 . Lose Combat Pursuer 15 | . . . 15 Influence Decreases 171 | . 30 86 55 Entered New Map 30 | . . 30 . Time Decay 141 | . 30 56 55 Squads Dispatched . | . . . . Investigation . | . . . . Extermination . | . . . . Reinforcement . | . . . . Assault . | . . . . Garrison . | . . . . Intercept . | . . . . Searches Triggered . | . . . . Construction Impeded . | . . . . Haulers Reinforced . | . . . . Active Scanning Responses . | . . . . Cargo Convoy Interrupts . | . . . . Stealth | -11 -10 -10 -10 --------- Run | Yrd Mat Min Sub Distress Signals . | . . . . Communications Jammed . | . . . . Distress Signals . | . . . . Times Spotted 31 | . 4 5 22 Peak Tracking Total 5 | . 2 3 5 Tactical Retreats 2 | . . 1 1 Traps | -11 -10 -10 -10 ------- Run | Yrd Mat Min Sub Traps Triggered . | . . . . Indirectly . | . . . . Trap Hack Attempts . | . . . . Triggered . | . . . . Disarmed . | . . . . Reprogrammed . | . . . . Reused . | . . . . Traps Extracted . | . . . . Installed . | . . . . Triggered . | . . . . Machines | -11 -10 -10 -10 ---------- Run | Yrd Mat Min Sub Machines Disabled 1 | . . . 1 Max in Single Turn 1 | . . . 1 Machines Repaired . | . . . . Machines Dismantled . | . . . . Machines Sabotaged . | . . . . Overloaded Fab Kills . | . . . . Hacking | -11 -10 -10 -10 --------- Run | Yrd Mat Min Sub Machines Accessed 1 | . 1 . . Terminals 1 | . 1 . . Fabricators . | . . . . Repair Stations . | . . . . Recycling Units . | . . . . Scanalyzers . | . . . . Garrison Access . | . . . . Total Hacks 1 | . 1 . . Successful 1 | . 1 . . Failed . | . . . . Catastrophic . | . . . . Database Lockouts . | . . . . Manual . | . . . . Terminals 1 | . 1 . . Fabricators . | . . . . Repair Stations . | . . . . Recycling Units . | . . . . Scanalyzers . | . . . . Garrison Access . | . . . . Terminal Hacks 1 | . 1 . . Locate Traps 1 | . 1 . . Fabricator Hacks . | . . . . Repair Station Hacks . | . . . . Recycling Unit Hacks . | . . . . Scanalyzer . | . . . . Garrison Access Hacks . | . . . . Unauthorized Hacks . | . . . . Terminals . | . . . . Fabricators . | . . . . Repair Stations . | . . . . Recycling Units . | . . . . Scanalyzers . | . . . . Garrison Access . | . . . . Data Cores Recovered . | . . . . Used . | . . . . Hacking Detections . | . . . . Full Trace Events . | . . . . Feedback Events . | . . . . Feedback Blocked . | . . . . Robot Schematics Acquired . | . . . . Robots Built . | . . . . Authchips . | . . . . Time . | . . . . Total Robot Build Rating . | . . . . Part Schematics Acquired . | . . . . Parts Built . | . . . . Authchips . | . . . . Time . | . . . . Total Part Build Rating . | . . . . Parts Repaired . | . . . . Time . | . . . . Parts Recycled . | . . . . Recycled Matter . | . . . . Retrieved Matter . | . . . . Retrieved Components . | . . . . Parts Scanalyzed . | . . . . Part Schematics Acquired . | . . . . Parts Damaged . | . . . . Bothacking | -11 -10 -10 -10 ------------ Run | Yrd Mat Min Sub Used RIF Installer . | . . . . Robots Hacked . | . . . . Non-combat . | . . . . Combat . | . . . . Robot Hacks Applied . | . . . . Relay Couplers Released . | . . . . Fabnet Peak Effective % . | . . . . Robots Rewired . | . . . . Allies Hacked . | . . . . Hacks Repelled . | . . . . Allies | -11 -10 -10 -10 -------- Run | Yrd Mat Min Sub Total Allies . | . . . . Largest Group . | . . . . Highest-Rated Group . | . . . . Highest-Rated Ally . | . . . . Total Orders . | . . . . Ally Attacks . | . . . . Total Damage . | . . . . Kills . | . . . . Allies Corrupted . | . . . . Allies Melted . | . . . . Intel | -11 -10 -10 -10 ------- Run | Yrd Mat Min Sub Active Infowar (turns) 1884 | . 49 305 1530 Terrain 182 | . . 52 130 Seismic 1400 | . . . 1400 ECM 302 | . 49 253 . Robot Analysis Total . | . . . . Derelict Logs Recovered 2 | . . 1 1 Drone Launches . | . . . . Drone Recoveries . | . . . . Exploration | -11 -10 -10 -10 ------------- Run | Yrd Mat Min Sub Turns Passed 2198 | 119 235 305 1539 Spaces Moved 1470 | 82 150 238 1000 Core 12 | 12 . . . Treads . | . . . . Legs 1148 | 70 150 238 690 Wheels 310 | . . . 310 Hover . | . . . . Flight . | . . . . Fastest Speed 50 | 50 120 120 110 Average Speed 117 | 114 120 120 116 Slowest Speed 120 | 120 120 120 120 Overloaded Moves . | . . . . Propulsion Burnouts . | . . . . Robots Hopped . | . . . . Potential Cave-ins . | . . . . Cave-ins Triggered . | . . . . Exploration Rate (%) 27 | 5 21 43 42 Regions Visited 3 Branch Regions 2 Pre-discovered Areas 1 | . . . 1 Known Exits Taken . | . . . . Unknown Exits Taken 3 | 1 1 1 . Scrap Searched 3 | . . 1 2 Spaces Dug 3 | . . . 3 Terrain Destroyed 11 | . 2 3 6 Melee . | . . . . Projectile 6 | . . . 6 AOE 5 | . 2 3 . Terrain Rammed . | . . . . Walls Destroyed . | . . . . Machines Disabled . | . . . . Actions | -11 -10 -10 -10 --------- Run | Yrd Mat Min Sub Total 1780 | 107 196 250 1227 Wait 133 | 7 23 2 101 Move 1467 | 81 149 237 1000 Hop . | . . . . Pick Up 42 | 12 9 2 19 Fast Attach . | . . . . Attach 15 | 6 1 . 8 Detach 1 | . . . 1 Swap 22 | 1 3 3 15 Drop 23 | . 6 2 15 Fire 77 | . 5 4 68 Melee . | . . . . Ram . | . . . . Kick . | . . . . Crush . | . . . . Escape Stasis . | . . . . Rewire . | . . . . Trap . | . . . . Miscellaneous . | . . . . Route ------- -11/Scrapyard -10/Materials -10/Mines -10/Subcaves History --------- Turn | Location | Event 12 | -11/Scrapyard | Discovered new exit (range 15) 120 | -11/Scrapyard | Entered Materials 195 | -10/Materials | Discovered new exit (range 6) 306 | -10/Materials | Build established: Mutant 355 | -10/Materials | Entered Mines 620 | -10/Mines | Discovered new exit (range 14) 635 | -10/Mines | A weapon hastily lodged in a ceiling crevice suddenly fell to the ground 660 | -10/Mines | Entered Subcaves 834 | -10/Subcaves | Ambushed by swarm of Subdwellers 1164 | -10/Subcaves | Ambushed by Subdwellers from Twisted Machinery 1241 | -10/Subcaves | Core integrity fell below 50% 1313 | -10/Subcaves | Learned location of Zion (-7) 2070 | -10/Subcaves | Build established: Scavenger-Mutant 2183 | -10/Subcaves | Core integrity fell below 20% 2199 | -10/Subcaves | Destroyed by E0-0PS(R) with Subdweller Beam Cannon Last Messages --------------- powers down. 01488_ Dropped Broken Sub. Power Source. 01758_ U0-QTN(R) destroyed. 01763_ Acquired Sub. Monowheel. 01766_ Acquired Sub. Laser. 01767_ Acquired 27 matter. 01788_ Acquired 9 matter. 01798_ Acquired 12 matter. 01804_ Machine disabled. 01804_ S-10 Pest destroyed. 01810_ Acquired 15 matter. 01811_ Lgt. Ion Engine fries itself beyond repair. 01812_ 4P-EKN(R): "WEHOME!" 01818_ Dropped ECM Suite. 01820_ Acquired Sub. Monowheel. 01890_ 4P-EKN(R) destroyed. 01897_ Acquired 26 matter. 02151_ 44-HB7(u) tweaks Twisted Machinery. 02181_ G-47 Trooper destroyed. Map ----- +----------------------------------------------------+ | ?????????????????????????????????????????????????? | | ?????????????????????????????????????????????????? | | ?????????????????????????????????????????????????? | | ?????????????????????????????????????????????????? | | ?????????????????????????????????????????????????? | | ?????????????????????????????????????????????????? | | ?????????????????????????????????????????????????? | | ?##????????????????????????? #???????????????????? | | # #????????????????????????? ?????????????????? | | #????????????????????????? ?????????????????? | | #?????????????????????????? #?????????????????? | | #?????????????????????????? #???? ??????????? | | #?????????????????????????#? #???# ??????????? | | #????????????????????????? # #??# #??????????? | | #????????????????????????? ### #??????????? | | ?????????????????????????? % #??????????? | | ?##??????????????????????? ! #??????????? | | # #???????????????????????# #??????????? | | #??????????????????????## R ???????????? | | ##?????????????????????? ?????????????? | | #?????????????????????? ##??????????????? | | #??????????????????????# #??????????????? | | #??????????????####???## #??????????????? | | ##?????????????## ##??# ##??????????????? | | ##????????????### #?## ####???????????????? | | #?????????##### # ###@ ##?????????????????? | | ##????????#" #?????????????????? | | ##???????#" ## # #?????????????????? | | ###?????## #### # ##?????????????????? | | ##?????# #?## ### #?????????????????? | | #??#### #?# ##?? ????????????????? | | # #### ### #??? ???????????????? | | # # ## ###??? ??????????????? | | ### ####????? ?????????????? | | # ##?####????????? ????????????? | | ##### #####??????????????? ???????????? | | ###???####??????????????????? ???????????? | | #????????????????????????????#??? ##????????????? | | ?????????????????????????????????????????????????? | | ?????????????????????????????????????????????????? | | ?????????????????????????????????????????????????? | | ?????????????????????????????????????????????????? | | ?????????????????????????????????????????????????? | | ?????????????????????????????????????????????????? | | ?????????????????????????????????????????????????? | | ?????????????????????????????????????????????????? | | ?????????????????????????????????????????????????? | | ?????????????????????????????????????????????????? | | ?????????????????????????????????????????????????? | | ?????????????????????????????????????????????????? | +----------------------------------------------------+ Best States ------------- Heat Dissipation 25 Energy Generation 15 Energy Capacity 500 Matter Stores 300 Matter Capacity 300 Sight Range 16 Terrain Scan Range 14 Terrain Scan Density 10 ECM Strength 1 Resistance: KI 20 Resistance: TH 20 Resistance: EX 20 Resistance: EM 20 Resistance: I 20 Resistance: S 20 Resistance: P 20 Evasion (%) 55 Offensive Hacking 10 Item Schematics ----------------- None Robot Schematics ------------------ None Fabricated ------------ Nothing Repaired ---------- Nothing Alien Tech Used ----------------- None Achievements -------------- Backstab Challenges ------------ None Game ------ Seed BiomechanicalTeslaModule Manual? 0 Play Time 00:32:23 Cumulative 3.5 hours Start 2025.06.25 @ 03:28:28 End 2025.06.25 @ 18:16:20 Sessions 3 Manual Loads 0 Difficulty Adventurer Special Mode None Game No. 5 Rogue 0 Adventurer 5 Explorer 0 Win Type - Total 0 Types 0/0/0/0/0/0/0/0/0/0 Lore% 0 Gallery% 6 Achievement% 5 Wizard Run 0 Options --------- Layout 2 ASCII 1 Keyboard 0 Movement Mouse Keybinds 0 Fullscreen 1 Font 16/SmallcapsGlow Map View 25x24 Zoom Use 74% Tactical HUD 1 Map Filters NONE Filters NONE Steam SD RUN: 2fbaff36-3915-468d-b50c-34d1f063605e